bitfinex/quotes_SOLUSD_20220117
["timestamp","ask_amount","ask_price","bid_price","bid_amount"]
[1642443375875,38.75299822,139.25,139.13,70.60244428]
[1642443376075,38.75299822,139.25,139.13,72.35864386]
[1642443376375,10.29,139.26,139.14,0.25]
[1642443376675,10.29,139.26,139.13,78.61864386]
[1642443376876,0.25,139.25,139.14,0.25]
[1642443377275,31.32128973,139.25,139.14,0.25]
[1642443377680,42.09758973,139.25,139.14,0.25]
[1642443378377,11.0263,139.25,139.14,0.25]
[1642443378581,11.0263,139.25,139.14,2.00619958]
[1642443378879,0.25,139.25,139.14,8.26619958]
[1642443379079,0.25,139.25,139.15,22.8627]
[1642443379279,23.0004,139.26,139.16,0.25]
[1642443379479,23.0004,139.26,139.16,44.53262649]
[1642443379679,22.7504,139.26,139.17,1.75619958]
[1642443379879,10.29,139.3,139.18,0.25]
[1642443380080,23.7811,139.31,139.18,30.1181]
[1642443380280,23.7811,139.31,139.19,1.75619958]
[1642443380483,0.25,139.3,139.19,2.00619958]
[1642443380682,0.25,139.3,139.2,36.92027744]
[1642443380914,0.25,139.3,139.21,24.5982]
[1642443381314,0.25,139.3,139.21,30.8582]
[1642443384010,72.6855016,139.31,139.21,30.8582]
[1642443384210,72.6855016,139.31,139.21,6.0]
[1642443384410,84.73170118,139.31,139.18,6.0]
[1642443384810,84.73170118,139.31,139.17,32.62794879]
[1642443385112,82.9755016,139.31,139.18,44.55756703]
[1642443385311,82.9755016,139.31,139.18,50.55756703]
[1642443385612,82.9755016,139.31,139.19,1.75619958]
[1642443385813,82.9755016,139.31,139.2,0.25]
[1642443386210,71.49,139.3,139.19,6.0]
[1642443386410,10.7738,139.28,139.19,6.0]
[1642443386610,10.7738,139.28,139.2,0.25]
[1642443387010,22.5311,139.31,139.2,0.25]
[1642443387211,32.8211,139.31,139.2,2.00619958]
[1642443387410,32.8211,139.31,139.21,23.1134]
[1642443387813,32.8211,139.31,139.22,0.25]
[1642443388010,67.33622227,139.31,139.22,37.19316361]
[1642443388416,0.25,139.3,139.22,43.19316361]
[1642443388613,11.0227,139.3,139.22,43.19316361]
[1642443389017,11.0227,139.3,139.22,42.94316361]
[1642443389614,11.0227,139.3,139.23,0.25]
[1642443389816,11.0227,139.3,139.22,42.94316361]
[1642443390316,11.0227,139.3,139.23,0.25]
[1642443390521,0.25,139.3,139.23,0.25]
[1642443391115,0.25,139.31,139.23,0.25]
[1642443391917,33.6711,139.35,139.24,1.75619958]
[1642443392116,10.7694,139.34,139.24,1.75619958]
[1642443392318,10.7694,139.34,139.25,0.25]
[1642443392518,23.3811,139.35,139.25,0.25]
[1642443392718,10.29,139.37,139.26,71.49]
[1642443392921,4.08951397,139.38,139.27,24.0269]
[1642443393119,6.13427095,139.41,139.27,46.83739958]
[1642443393120,14.85351397,139.41,139.27,46.83739958]
[1642443393322,14.85351397,139.41,139.28,1.75619958]
[1642443393923,14.85351397,139.41,139.29,58.52134536]
[1642443394120,10.764,139.41,139.29,58.52134536]
[1642443394322,24.7661,139.42,139.3,1.75619958]
[1642443395522,24.7661,139.42,139.31,10.29]
[1642443395726,10.7627,139.43,139.31,34.5823]
[1642443396027,4.08951397,139.45,139.32,1.75619958]
[1642443396224,4.08951397,139.45,139.33,10.29]
[1642443396425,4.08951397,139.45,139.35,71.49]
[1642443396825,4.08951397,139.45,139.36,1.75619958]
[1642443397025,4.08951397,139.45,139.37,42.33443016]
[1642443397626,31.10853427,139.44,139.33,10.29]
[1642443398227,10.7622,139.43,139.33,10.29]
[1642443398427,10.7622,139.43,139.33,34.1451]
[1642443398630,10.7622,139.43,139.33,10.29]
[1642443399034,10.7622,139.43,139.29,15.63724837]
[1642443399228,34.46,139.43,139.29,5.34724837]
[1642443399554,10.7662,139.38,139.26,49.60094837]
[1642443399929,10.7662,139.38,139.3,47.24879791]
[1642443400129,69.9714,139.42,139.3,47.24879791]
[1642443400330,69.9714,139.42,139.3,49.00499749]
[1642443400530,1.91397996,139.38,139.3,49.00499749]
[1642443402332,1.91397996,139.39,139.3,49.00499749]
[1642443403030,1.91397996,139.39,139.3,60.34271981]
[1642443405531,1.91397996,139.39,139.3,71.10581981]
[1642443405732,1.91397996,139.39,139.3,142.59581981]
[1642443406731,1.91397996,139.39,139.3,151.03481981]
[1642443407734,6.00349393,139.42,139.33,2.04772232]
[1642443407933,6.00349393,139.42,139.34,10.7597]
[1642443407934,1.91397996,139.42,139.34,10.7597]
[1642443408133,1.91397996,139.42,139.34,12.51589958]
[1642443408335,1.91397996,139.42,139.35,1.75619958]
[1642443408634,1.91397996,139.42,139.36,43.51099471]
[1642443408938,1.91397996,139.42,139.37,1.75619958]
[1642443410836,1.91397996,139.43,139.37,1.75619958]
[1642443412736,1.91397996,139.42,139.37,1.75619958]
[1642443413837,1.91397996,139.43,139.36,66.48049471]
[1642443414040,1.91397996,139.43,139.36,68.23669429]
[1642443416237,1.91397996,139.43,139.36,66.48049471]
[1642443416643,1.91397996,139.43,139.36,56.48049471]
[1642443417239,1.91397996,139.43,139.36,68.85419429]
[1642443417441,1.91397996,139.42,139.36,79.61269429]
[1642443418240,1.91397996,139.43,139.36,79.61269429]
[1642443419544,1.91397996,139.43,139.37,71.49]
[1642443420643,1.91397996,139.44,139.37,84.00389958]
[1642443421248,1.91397996,139.44,139.37,12.51389958]
[1642443424448,1.91397996,139.44,139.37,1.75619958]
[1642443424656,1.91397996,139.44,139.36,56.48049471]
[1642443425050,37.49586279,139.43,139.36,56.48049471]
[1642443425448,1.91397996,139.44,139.36,56.48049471]
[1642443425849,1.91397996,139.43,139.36,56.48049471]
[1642443426451,40.18835424,139.43,139.36,56.48049471]
[1642443427465,47.06935424,139.43,139.35,26.15399958]
[1642443427655,57.83195424,139.43,139.34,2.04772232]
[1642443428560,1.91397996,139.41,139.32,2.04772232]
[1642443428960,10.7644,139.4,139.32,2.04772232]
[1642443429159,19.6144,139.4,139.32,2.04772232]
[1642443429587,34.78299641,139.4,139.32,41.17737121]
[1642443430691,34.78299641,139.4,139.32,1.75619958]
[1642443430890,10.766,139.38,139.3,2.04772232]
[1642443431491,82.256,139.38,139.3,2.04772232]
[1642443431691,38.27437428,139.37,139.3,2.04772232]
[1642443431891,38.27437428,139.37,139.28,72.08897396]
[1642443432094,10.7678,139.36,139.28,72.08897396]
[1642443432491,10.7678,139.36,139.28,25.22672232]
[1642443432691,10.7678,139.36,139.28,2.04772232]
[1642443432991,12.68177996,139.36,139.27,2.04772232]
[1642443435392,12.68177996,139.36,139.26,42.2274176]
[1642443435595,12.68317996,139.34,139.26,42.2274176]
[1642443435792,12.68317996,139.34,139.26,43.98361718]
[1642443435993,1.91397996,139.34,139.26,43.98361718]
[1642443437496,12.68237996,139.35,139.26,46.0313395]
[1642443439093,1.91397996,139.34,139.26,43.98361718]
[1642443439295,12.68307996,139.34,139.26,43.98361718]
[1642443439696,27.5170177,139.34,139.26,43.98361718]
[1642443441399,25.60303774,139.34,139.26,43.98361718]
[1642443441899,25.60303774,139.34,139.26,1.75619958]
[1642443441900,97.09303774,139.34,139.26,1.75619958]
[1642443442101,105.29303774,139.34,139.25,2.04772232]
[1642443442499,115.58303774,139.34,139.25,2.04772232]
[1642443443400,36.69505299,139.31,139.23,1.75619958]
[1642443443601,10.772,139.3,139.23,1.75619958]
[1642443444504,10.772,139.3,139.23,44.00723372]
[1642443445312,1.91397996,139.32,139.24,1.75619958]
[1642443446808,26.24627996,139.33,139.24,1.75619958]
[1642443447008,1.91397996,139.33,139.24,1.75619958]
[1642443447210,1.91397996,139.33,139.24,24.25849958]
[1642443447708,40.84704292,139.37,139.24,24.25849958]
[1642443447709,1.91397996,139.34,139.25,3.8039219]
[1642443447912,1.91397996,139.34,139.25,14.0939219]
[1642443448107,1.91397996,139.34,139.26,1.75619958]
[1642443448510,1.91397996,139.34,139.27,40.5981855]
[1642443448710,1.91397996,139.35,139.27,40.5981855]
[1642443448909,1.91397996,139.35,139.28,84.01039958]
[1642443449311,1.91397996,139.35,139.29,1.75619958]
[1642443449809,1.91397996,139.35,139.3,39.23110447]
[1642443450011,1.91397996,139.36,139.3,39.23110447]
[1642443450209,1.91397996,139.36,139.3,40.98730405]
[1642443452215,1.91397996,139.36,139.3,39.23110447]
[1642443453515,1.91397996,139.36,139.31,71.49]
[1642443454622,1.91397996,139.39,139.33,45.45399985]
[1642443454817,1.91397996,139.39,139.33,70.13939985]
[1642443455720,1.91397996,139.39,139.33,161.56739943]
[1642443456517,1.91397996,139.39,139.34,10.29]
[1642443456717,1.91397996,139.39,139.35,10.7576]
[1642443456918,1.91397996,139.42,139.36,36.21746355]
[1642443457517,1.91397996,139.42,139.36,37.97366313]
[1642443458618,1.91397996,139.42,139.37,10.7576]
[1642443458819,1.91397996,139.42,139.38,71.49]
[1642443459019,1.91397996,139.43,139.39,46.52948205]
[1642443459617,1.91397996,139.43,139.39,57.28598205]
[1642443459818,1.91397996,139.43,139.39,46.52948205]
[1642443460219,1.91397996,139.44,139.39,46.52948205]
[1642443461421,1.91397996,139.43,139.39,46.52948205]
[1642443461821,1.91397996,139.43,139.39,48.28568163]
[1642443462922,1.91397996,139.43,139.39,46.52948205]
[1642443463121,1.91397996,139.43,139.37,10.29]
[1642443463345,1.91397996,139.43,139.35,56.4674]
[1642443463548,9.55497996,139.43,139.35,56.4674]
[1642443464145,24.4988038,139.43,139.35,10.29]
[1642443464347,1.91397996,139.4,139.35,10.29]
[1642443464949,1.91397996,139.4,139.32,2.04772232]
[1642443465148,8.78297996,139.4,139.32,2.04772232]
[1642443465548,36.58516689,139.39,139.31,40.61078963]
[1642443465750,38.49914685,139.39,139.3,2.04772232]
[1642443465949,57.67124685,139.39,139.3,2.04772232]
[1642443466750,57.67124685,139.39,139.3,41.09853729]
[1642443466951,1.91397996,139.36,139.3,39.05081497]
[1642443467149,1.91397996,139.36,139.3,1.75619958]
[1642443467349,1.91397996,139.36,139.28,2.04772232]
[1642443467549,10.33097996,139.36,139.28,2.04772232]
[1642443468151,10.33097996,139.36,139.29,34.833667]
[1642443468351,1.91397996,139.35,139.29,34.833667]
[1642443469352,1.91397996,139.34,139.29,34.833667]
[1642443469753,1.91397996,139.34,139.26,2.04772232]
[1642443470557,1.91397996,139.34,139.25,2.04772232]
[1642443470757,1.91397996,139.34,139.26,45.07309299]
[1642443472354,1.91397996,139.34,139.26,47.12081531]
[1642443473359,1.91397996,139.33,139.26,45.07309299]
[1642443474358,1.91397996,139.34,139.26,45.07309299]
[1642443478165,1.91397996,139.34,139.26,55.83969299]
[1642443478365,1.91397996,139.34,139.26,57.59589257]
[1642443478566,1.91397996,139.34,139.27,10.29]
[1642443478969,1.91397996,139.34,139.28,1.75619958]
[1642443479168,1.91397996,139.34,139.29,35.63322208]
[1642443479568,1.91397996,139.34,139.29,48.15282166]
[1642443479769,1.91397996,139.36,139.29,48.15282166]
[1642443481668,1.91397996,139.37,139.29,48.15282166]
[1642443482569,1.91397996,139.37,139.29,119.64282166]
[1642443482969,1.91397996,139.37,139.3,10.29]
[1642443483368,1.91397996,139.37,139.3,21.0529]
[1642443483572,1.91397996,139.37,139.3,94.29909958]
[1642443483769,4.08951397,139.4,139.3,94.29909958]
[1642443484971,4.08951397,139.44,139.3,94.29909958]
[1642443485172,4.08951397,139.44,139.31,24.9049]
[1642443485376,4.08951397,139.44,139.34,10.7605]
[1642443485573,4.08951397,139.44,139.35,38.72365992]
[1642443486475,4.08951397,139.43,139.35,38.72365992]
[1642443487977,4.08951397,139.44,139.35,38.72365992]
[1642443488581,4.08951397,139.44,139.35,49.48325992]
[1642443491206,4.08951397,139.44,139.36,71.49]
[1642443491404,4.08951397,139.44,139.37,10.7578]
[1642443491604,4.08951397,139.44,139.38,38.35244902]
[1642443492206,4.08951397,139.45,139.38,38.35244902]
[1642443495507,4.08951397,139.45,139.39,1.75619958]
[1642443495908,4.08951397,139.45,139.4,10.29]
[1642443496307,4.08951397,139.45,139.41,37.50304353]
[1642443496507,23.4836,139.53,139.42,103.0]
[1642443496508,6.13427095,139.5,139.42,103.0]
[1642443496707,6.13427095,139.5,139.42,33.78119958]
[1642443496905,6.13427095,139.5,139.43,1.75619958]
[1642443497809,4.09379526,139.52,139.44,42.31979342]
[1642443498408,4.09379526,139.52,139.44,44.075993]
[1642443498607,4.09379526,139.52,139.44,65.118693]
[1642443498907,4.09379526,139.53,139.44,65.118693]
[1642443500208,6.13427095,139.54,139.44,65.118693]
[1642443500408,4.09379526,139.55,139.44,65.118693]
[1642443501109,4.09379526,139.55,139.44,88.324493]
[1642443501407,4.09379526,139.55,139.45,71.49]
[1642443501809,4.09379526,139.55,139.48,10.7476]
[1642443502009,4.09379526,139.55,139.49,10.29]
[1642443502209,4.09379526,139.55,139.49,12.04619958]
[1642443502415,6.13427095,139.56,139.5,47.42143271]
[1642443502609,10.22806621,139.59,139.5,120.66763229]
[1642443503008,10.22806621,139.59,139.51,1.75619958]
[1642443503409,4.09379526,139.6,139.51,1.75619958]
[1642443504412,29.44937095,139.61,139.51,1.75619958]
[1642443506714,28.94937095,139.61,139.51,1.75619958]
[1642443506915,6.13427095,139.61,139.51,12.04619958]
[1642443507116,6.13427095,139.61,139.51,17.62219958]
[1642443507316,6.13427095,139.61,139.52,1.75619958]
[1642443507515,6.13427095,139.61,139.53,10.29]
[1642443507723,6.13427095,139.61,139.54,40.88276942]
[1642443507918,6.13427095,139.61,139.54,42.638969]
[1642443508117,6.13427095,139.61,139.55,1.75619958]
[1642443508318,1.64718078,139.64,139.55,1.75619958]
[1642443509321,1.64718078,139.64,139.56,71.49]
[1642443509820,6.13427095,139.67,139.57,1.75619958]
[1642443510324,6.13427095,139.67,139.58,40.86829785]
[1642443510521,45.7604,139.68,139.58,40.86829785]
[1642443511423,4.06656044,139.67,139.58,40.86829785]
[1642443512423,18.50504472,139.67,139.58,40.86829785]
[1642443513426,4.06656044,139.66,139.58,40.86829785]
[1642443519634,4.06656044,139.67,139.58,40.86829785]
[1642443523039,35.08454727,139.66,139.57,23.6049]
[1642443523964,35.08454727,139.66,139.57,70.63703012]
[1642443524167,35.08454727,139.66,139.57,23.6049]
[1642443524366,45.82934727,139.66,139.57,23.6049]
[1642443524568,4.06656044,139.65,139.55,10.29]
[1642443524771,4.06656044,139.65,139.51,22.6405]
[1642443524969,28.22256044,139.65,139.52,10.29]
[1642443525170,28.22256044,139.65,139.53,48.78881277]
[1642443525973,14.81286044,139.64,139.53,75.26611235]
[1642443526169,4.06656044,139.64,139.53,75.26611235]
[1642443526369,4.06656044,139.64,139.54,10.29]
[1642443526569,4.06656044,139.64,139.54,18.014]
[1642443526770,4.06656044,139.64,139.55,1.75619958]
[1642443526973,4.06656044,139.64,139.56,10.29]
[1642443527175,47.1362323,139.66,139.56,57.63631386]
[1642443528074,22.9289,139.67,139.56,57.63631386]
[1642443528372,4.0673199,139.65,139.56,59.39251344]
[1642443529172,4.0673199,139.66,139.56,59.39251344]
[1642443530180,4.0673199,139.66,139.56,71.21207434]
[1642443530674,4.0673199,139.66,139.56,81.95417434]
[1642443530875,4.0673199,139.66,139.57,71.49]
[1642443531081,4.0673199,139.66,139.58,10.29]
[1642443531276,11.06657359,139.7,139.59,44.77744915]
[1642443531476,6.13427095,139.71,139.6,10.29]
[1642443532477,16.87477095,139.71,139.6,10.29]
[1642443532676,75.74402859,139.71,139.6,10.29]
[1642443533981,12.19993226,139.7,139.6,10.29]
[1642443534179,22.94183226,139.7,139.6,10.29]
[1642443535179,22.94183226,139.7,139.61,5.0]
[1642443535379,22.94183226,139.7,139.62,47.31470319]
[1642443535581,4.0673199,139.69,139.62,47.31470319]
[1642443535880,14.8095199,139.69,139.61,5.0]
[1642443536481,6.13427095,139.68,139.61,5.0]
[1642443536682,10.86315928,139.67,139.61,5.0]
[1642443536981,10.7445,139.66,139.61,5.0]
[1642443537685,14.8118199,139.66,139.61,5.0]
[1642443538686,4.0673199,139.65,139.61,5.0]
[1642443540084,22.35979,139.65,139.61,5.0]
[1642443540685,33.10499,139.65,139.61,5.0]
[1642443540889,40.52899,139.65,139.61,5.0]
[1642443541295,4.0673199,139.64,139.61,5.0]
[1642443541491,10.748,139.63,139.61,5.0]
[1642443541691,10.748,139.63,139.5,23.0615]
[1642443542317,5.0,139.6,139.5,23.0615]
[1642443542716,5.0,139.6,139.51,45.12974675]
[1642443543217,15.7489,139.6,139.51,45.12974675]
[1642443544821,15.7489,139.6,139.5,24.81769958]
[1642443545021,23.0449,139.6,139.5,24.81769958]
[1642443545322,4.08980603,139.59,139.5,24.81769958]
[1642443545521,14.83990603,139.59,139.5,24.81769958]
[1642443546020,14.83990603,139.59,139.51,39.99489486]
[1642443546620,4.08980603,139.58,139.51,39.99489486]
[1642443546821,25.94029132,139.58,139.51,39.99489486]
[1642443547020,36.69079132,139.58,139.5,23.0615]
[1642443547220,44.81179132,139.58,139.48,1.75619958]
[1642443547421,40.72198529,139.58,139.43,10.29]
[1642443547622,24.2684,139.57,139.43,10.29]
[1642443548021,10.7544,139.53,139.44,46.1383804]
[1642443548221,17.7394,139.53,139.44,46.1383804]
[1642443548722,6.985,139.53,139.44,46.1383804]
[1642443548924,6.985,139.53,139.45,71.49]
[1642443549121,4.09079157,139.56,139.45,71.49]
[1642443549322,4.09079157,139.56,139.45,95.6114]
[1642443549523,4.09079157,139.56,139.47,43.76577458]
[1642443549925,24.2684,139.57,139.47,43.76577458]
[1642443550523,10.7522,139.56,139.47,43.76577458]
[1642443553727,42.42830802,139.55,139.47,43.76577458]
[1642443553929,10.7544,139.53,139.47,43.76577458]
[1642443555229,10.7533,139.55,139.47,43.76577458]
[1642443556028,10.29,139.58,139.48,1.75619958]
[1642443556228,35.1047,139.59,139.48,26.16229958]
[1642443556431,24.3548,139.59,139.48,26.16229958]
[1642443556629,24.3548,139.59,139.49,1.75619958]
[1642443557027,24.3548,139.59,139.5,49.28406466]
[1642443557427,15.0181051,139.58,139.5,49.28406466]
[1642443557628,15.0181051,139.58,139.47,1.75619958]
[1642443557827,19.10810824,139.58,139.47,1.75619958]
[1642443558026,19.10810824,139.58,139.45,35.2272]
[1642443558228,19.10810824,139.58,139.45,36.98339958]
[1642443558628,10.7516,139.57,139.46,46.57482749]
[1642443558933,86.33160314,139.57,139.46,46.57482749]
[1642443559431,86.33160314,139.57,139.46,48.33102707]
[1642443559730,4.09000314,139.56,139.46,48.33102707]
[1642443559932,10.754,139.54,139.45,35.2272]
[1642443560230,10.754,139.54,139.43,23.5202]
[1642443560231,16.963,139.54,139.43,23.5202]
[1642443560831,71.49,139.53,139.43,23.5202]
[1642443561031,18.0236622,139.52,139.44,40.5056969]
[1642443561233,10.7563,139.51,139.44,40.5056969]
[1642443561632,91.1693,139.51,139.41,10.29]
[1642443561833,91.1693,139.51,139.4,1.75619958]
[1642443562632,115.8645,139.51,139.41,49.36007444]
[1642443563237,35.4515,139.51,139.41,49.36007444]
[1642443563434,35.4515,139.51,139.41,51.11627402]
[1642443563834,24.6952,139.51,139.41,51.11627402]
[1642443564635,24.6952,139.51,139.41,74.27227402]
[1642443565536,24.6952,139.51,139.41,85.02647402]
[1642443568042,10.7548,139.53,139.41,85.02647402]
[1642443569945,18.04252222,139.52,139.41,85.02647402]
[1642443570144,28.79782222,139.52,139.41,74.27227402]
[1642443570546,100.28782222,139.52,139.41,74.27227402]
[1642443570747,100.28782222,139.52,139.41,72.51607444]
[1642443571151,105.94382222,139.52,139.38,10.29]
[1642443571355,10.29,139.51,139.36,12.04619958]
[1642443571549,10.29,139.51,139.35,48.5249]
[1642443571852,10.7625,139.47,139.34,5.38657318]
[1642443572048,26.5495,139.47,139.34,5.38657318]
[1642443572249,39.48996244,139.46,139.35,38.94153005]
[1642443572449,10.29,139.47,139.35,38.94153005]
[1642443572849,10.761,139.45,139.35,38.94153005]
[1642443573650,10.761,139.45,139.35,62.81913005]
[1642443573851,4.09346139,139.46,139.35,62.81913005]
[1642443574750,10.29,139.47,139.35,62.81913005]
[1642443575552,10.7599,139.46,139.35,62.81913005]
[1642443575996,10.7599,139.46,139.35,73.10913005]
[1642443576901,33.727,139.49,139.36,71.49]
[1642443577096,10.7586,139.48,139.37,94.1485]
[1642443577798,10.7586,139.48,139.37,22.6585]
[1642443577997,10.7586,139.48,139.38,48.86907036]
[1642443578197,21.0486,139.48,139.34,22.9831]
[1642443578401,23.5366,139.47,139.32,5.38657318]
[1642443578598,10.29,139.46,139.32,5.38657318]
[1642443578798,10.7664,139.43,139.32,5.38657318]
[1642443578996,10.29,139.42,139.32,5.38657318]
[1642443579197,35.8911,139.4,139.32,5.38657318]
[1642443579401,35.8911,139.4,139.33,48.38246954]
[1642443579797,10.7674,139.39,139.33,48.38246954]
[1642443580397,35.8911,139.4,139.33,50.13866912]
[1642443580602,10.29,139.42,139.34,72.0]
[1642443581002,10.7674,139.39,139.35,1.75619958]
[1642443581399,35.885,139.42,139.35,1.75619958]
[1642443581600,56.9333,139.45,139.36,38.25385106]
[1642443582102,10.7634,139.43,139.36,38.25385106]
[1642443582301,10.7634,139.43,139.36,40.01005064]
[1642443584002,10.7634,139.43,139.36,38.25385106]
[1642443584710,10.7634,139.43,139.36,40.01005064]
[1642443585106,21.0511,139.45,139.36,40.01005064]
[1642443585310,225.2042,139.54,139.36,47.52705064]
[1642443585505,34.4565,139.51,139.36,47.52705064]
[1642443585918,6.13427095,139.48,139.36,47.52705064]
[1642443586110,6.13427095,139.48,139.36,58.28715064]
[1642443586710,6.13427095,139.48,139.36,68.57715064]
[1642443587140,4.09310248,139.47,139.36,68.57715064]
[1642443588237,8.18620496,139.48,139.36,68.57715064]
[1642443589540,4.09310248,139.49,139.36,68.57715064]
[1642443589943,4.09310248,139.49,139.36,59.30395106]
[1642443590341,8.18620496,139.49,139.36,59.30395106]
[1642443590540,8.18620496,139.49,139.36,61.06015064]
[1642443591242,18.94370496,139.49,139.36,61.06015064]
[1642443591441,4.09310248,139.48,139.36,61.06015064]
[1642443592449,10.29,139.47,139.36,50.77015064]
[1642443592644,67.7417486,139.47,139.36,50.77015064]
[1642443593644,139.2317486,139.47,139.36,50.77015064]
[1642443594045,8.18673348,139.46,139.36,50.77015064]
[1642443594244,18.94673348,139.46,139.36,50.77015064]
[1642443595245,18.94673348,139.46,139.36,49.01395106]
[1642443595445,8.18673348,139.46,139.36,49.01395106]
[1642443595846,18.47673348,139.46,139.34,12.51719958]
[1642443596046,14.38310248,139.46,139.32,1.75619958]
[1642443596346,14.38310248,139.46,139.31,28.7231358]
[1642443596547,14.38310248,139.46,139.31,30.47933538]
[1642443597045,4.09310248,139.43,139.32,37.2562458]
[1642443597248,10.7637,139.41,139.32,48.0189458]
[1642443597649,45.41108063,139.4,139.33,1.75619958]
[1642443597950,10.7637,139.41,139.32,48.0189458]
[1642443598147,4.09310248,139.43,139.33,1.75619958]
[1642443598347,4.09310248,139.43,139.33,12.04619958]
[1642443598547,4.09310248,139.43,139.36,10.7578]
[1642443598749,4.09310248,139.43,139.37,39.78463659]
[1642443598947,46.20008749,139.42,139.33,1.75619958]
[1642443599149,46.20008749,139.42,139.31,36.79089958]
[1642443599348,56.49008749,139.42,139.31,24.7447]
[1642443599548,56.49008749,139.42,139.32,10.7623]
[1642443599949,71.49,139.41,139.32,10.7623]
[1642443600151,71.49,139.41,139.33,35.94736808]
[1642443600751,56.49008749,139.42,139.33,35.94736808]
[1642443600948,10.29,139.42,139.33,48.46516766]
[1642443601551,4.09310248,139.45,139.33,48.46516766]
[1642443601749,4.09310248,139.45,139.33,71.93286766]
[1642443601950,43.91626047,139.44,139.33,71.93286766]
[1642443602853,14.38310248,139.46,139.33,71.93286766]
[1642443603451,10.29,139.46,139.33,71.93286766]
[1642443603951,40.21319655,139.45,139.33,71.93286766]
[1642443604151,50.50319655,139.45,139.33,71.93286766]
[1642443605252,2.04302865,139.44,139.33,73.9367125]
[1642443606154,2.04302865,139.44,139.34,10.29]
[1642443606357,2.04302865,139.45,139.37,10.7571]
[1642443606553,2.04302865,139.45,139.38,40.64396849]
[1642443607557,2.04302865,139.45,139.39,10.7568]
[1642443608556,2.04302865,139.46,139.39,10.7568]
[1642443608756,2.04302865,139.46,139.39,12.51299958]
[1642443608957,2.04302865,139.46,139.39,19.01599958]
[1642443609557,2.04302865,139.46,139.39,90.50599958]
[1642443609860,2.04302865,139.48,139.39,90.50599958]
[1642443611161,2.04302865,139.49,139.39,90.50599958]
[1642443611960,2.04302865,139.49,139.39,113.99749958]
[1642443612563,44.00615778,139.49,139.39,36.00449958]
[1642443612761,1.75619958,139.48,139.38,2.00384484]
[1642443613361,10.29,139.47,139.38,2.00384484]
[1642443613562,37.59418282,139.46,139.38,2.00384484]
[1642443613762,10.29,139.45,139.39,38.09797418]
[1642443613963,10.7626,139.44,139.39,38.09797418]
[1642443614161,21.0526,139.44,139.38,2.00384484]
[1642443614562,126.0,139.43,139.35,3.9784358]
[1642443614964,10.29,139.42,139.35,3.9784358]
[1642443615163,51.62325173,139.41,139.35,3.9784358]
[1642443615363,57.10125173,139.41,139.36,40.17341726]
[1642443615564,16.2436,139.41,139.36,40.17341726]
[1642443615964,16.2436,139.41,139.28,37.5270358]
[1642443616363,10.7656,139.41,139.28,37.5270358]
[1642443616563,10.7656,139.41,139.28,48.2922358]
[1642443616765,10.7656,139.41,139.28,37.5270358]
[1642443616965,10.7656,139.41,139.3,44.54305442]
[1642443618369,12.52179958,139.41,139.3,44.54305442]
[1642443618567,12.52179958,139.41,139.27,28.3815358]
[1642443618568,21.0556,139.41,139.27,28.3815358]
[1642443618769,26.9316,139.41,139.27,3.9784358]
[1642443618969,10.771,139.37,139.27,3.9784358]
[1642443619171,17.692,139.37,139.27,3.9784358]
[1642443619369,27.982,139.37,139.25,3.9784358]
[1642443619570,45.29387483,139.36,139.28,35.11236089]
[1642443619770,45.29387483,139.36,139.25,3.9784358]
[1642443620169,10.7704,139.34,139.25,3.9784358]
[1642443620370,18.7354,139.34,139.25,3.9784358]
[1642443620670,18.7354,139.34,139.22,5.38657318]
[1642443620900,39.96999917,139.33,139.25,35.39181223]
[1642443621071,10.29,139.35,139.25,35.39181223]
[1642443621270,10.7704,139.33,139.25,35.39181223]
[1642443623477,10.7704,139.33,139.21,53.5140358]
[1642443624078,10.7704,139.33,139.21,49.5356]
[1642443624476,10.7704,139.33,139.22,39.56988509]
[1642443625678,10.7688,139.35,139.22,39.56988509]
[1642443625880,10.7688,139.35,139.22,49.85988509]
[1642443626277,10.7688,139.35,139.22,60.62988509]
[1642443626477,48.67099725,139.35,139.22,60.62988509]
[1642443627280,48.67099725,139.35,139.23,18.8413068]
[1642443627881,21.0572,139.37,139.23,18.8413068]
[1642443628080,21.0572,139.37,139.23,42.2700068]
[1642443628282,21.0572,139.37,139.24,4.093971]
[1642443628510,21.0572,139.37,139.24,14.861871]
[1642443628811,37.91981852,139.36,139.25,48.21258584]
[1642443629509,37.91981852,139.36,139.25,58.98028584]
[1642443630512,37.91981852,139.36,139.26,4.093971]